{"text_format":"1","workbook":"xlsx","n_sheets":3,"sheets":["Бланк Методички","Обработка результатов","Печать"],"not_rendered":{"charts":1,"images":1,"macros":1,"external_links":0,"defined_names":2,"comments":0,"pivot_tables":0},"unopened":[],"bounds":{"document_bytes":16777216,"sheet_cells":100000,"rows_first":2000,"rows_last":500,"rows_between":2000,"halvings":0,"cell_chars":16384,"cell_head_chars":4096},"cells_cut":0,"cells_raw":0,"read":"whole","date_system":"1900"}

{"sheet":"Бланк Методички","index":0,"n_rows":45,"n_cols":34,"rows_kept":45,"cut":false,"hidden":false,"merged":[[38,1,38,11],[39,1,39,11],[40,1,40,11],[41,1,41,11],[42,1,42,11],[26,1,26,11],[27,1,27,11],[28,1,28,11],[29,1,29,11],[30,1,30,11],[13,1,13,11],[14,1,14,11],[15,1,15,11],[16,1,16,11],[17,1,17,11],[38,12,38,14],[39,12,39,14],[40,12,40,14],[41,12,41,14],[42,12,42,14],[43,12,43,14],[44,12,44,14],[43,1,43,11],[44,1,44,11],[20,1,20,11],[31,1,31,11],[32,1,32,11],[33,1,33,11],[34,1,34,11],[35,1,35,11],[36,1,36,11],[37,1,37,11],[30,12,30,14],[31,12,31,14],[32,12,32,14],[33,12,33,14],[18,1,18,11],[19,1,19,11],[27,12,27,14],[28,12,28,14],[29,12,29,14],[21,12,21,14],[22,12,22,14],[23,12,23,14],[24,12,24,14],[25,12,25,14],[26,12,26,14],[21,1,21,11],[22,1,22,11],[23,1,23,11],[24,1,24,11],[25,1,25,11],[34,12,34,14],[35,12,35,14],[36,12,36,14],[37,12,37,14],[9,1,9,11],[10,1,10,11],[11,1,11,11],[12,1,12,11],[18,12,18,14],[13,12,13,14],[14,12,14,14],[15,12,15,14],[16,12,16,14],[17,12,17,14],[19,12,19,14],[20,12,20,14],[2,15,2,18],[1,10,1,11],[1,12,1,14],[1,0,1,2],[1,3,1,8],[2,0,2,2],[2,3,2,8],[4,0,7,14],[9,12,9,14],[10,12,10,14],[11,12,11,14],[12,12,12,14]]}
[null,null,null,null,null,null,null,null,null,null,null,null,null,null,null,null,null,null,null,null,null,null,null,null,null,null,null,null,null,null,null,null,10,"5 А"]
["Фамилия, имя",null,null,null,null,null,null,null,null,null,"Класс",null,null,null,null,null,null,null,null,null,null,null,null,null,null,null,null,null,null,null,null,null,11,"5 Б"]
["Возраст",null,null,null,null,null,null,null,null,null,null,null,null,null,null,null,null,null,null,null,null,null,null,null,null,null,null,null,null,null,null,null,12,"5 В"]
[null,null,null,null,null,null,null,null,null,null,null,null,null,null,null,null,null,null,null,null,null,null,null,null,null,null,null,null,null,null,null,null,13]
["Предлагаем оценить несколько утверждений. Ваши ответы не будут расцениваться как хорошие или плохие, поэтому просим проявить откровенность. Над утверждениями не стоит долго раздумывать. Отвечайте сразу то, что пришло в голову. ",null,null,null,null,null,null,null,null,null,null,null,null,null,null,null,null,null,null,null,null,null,null,null,null,null,null,null,null,null,null,"Мальчик",14]
[null,null,null,null,null,null,null,null,null,null,null,null,null,null,null,null,null,null,null,null,null,null,null,null,null,null,null,null,null,null,null,"Девочка",15]
[null,null,null,null,null,null,null,null,null,null,null,null,null,null,null,null,null,null,null,null,null,null,null,null,null,null,null,null,null,null,null,null,16]
[]
[]
[1,"Мне больше нравятся книги о путешествиях, чем книги из серии «Жизнь замечательных людей».",null,null,null,null,null,null,null,null,null,null,null,null,null,null,null,null,null,null,null,null,null,null,"Не знаю"]
[2,"Взрослых детей раздражает забота старших.",null,null,null,null,null,null,null,null,null,null,null,null,null,null,null,null,null,null,null,null,null,null,"Нет"]
[3,"Мне нравится размышлять о причинах успехов и неудач других людей.",null,null,null,null,null,null,null,null,null,null,null,null,null,null,null,null,null,null,null,null,null,null,"Иногда"]
[4,"Среди всех музыкальных передач предпочитаю «Современные ритмы».",null,null,null,null,null,null,null,null,null,null,null,null,null,null,null,null,null,null,null,null,null,null,"Часто"]
[5,"Чрезмерную раздражительность и несправедливые упреки больного надо терпеть, даже если они продолжаются годами.",null,null,null,null,null,null,null,null,null,null,null,null,null,null,null,null,null,null,null,null,null,null,"Всегда"]
[6,"Больному человеку можно помочь даже словом.",null,null,null,null,null,null,null,null,null,null,null,null,null,null,null,null,null,null,null,null,null,null,"Да"]
[7,"Посторонним людям не следует вмешиваться в конфликт между двумя лицами."]
[8,"Старые люди, как правило, беспричинно обидчивы."]
[9,"Когда в детстве я слушал грустную историю, на мои глаза сами по себе наворачивались слезы."]
[10,"Раздраженное состояние моих родителей влияет на мое настроение."]
[11,"Я равнодушен к критике в свой адрес."]
[12,"Мне больше нравится рассматривать портреты, чем картины с пейзажами."]
[13,"Я всегда всё родителям прощаю, даже если они были неправы."]
[14,"Если лошадь плохо тянет, ее надо хлестать."]
[15,"Когда я читаю о драматичных событиях в жизни людей, то чувствую, словно это происходит со мной."]
[16,"Родители относятся к своим детям справедливо."]
[17,"Видя ссорящихся детей, я вмешиваюсь."]
[18,"Я не обращаю внимания на плохое настроение моих родителей."]
[19,"Я подолгу наблюдаю за поведением птиц и животных, откладывая другие дела."]
[20,"Фильмы и книги могут вызвать слезы только у несерьезных людей."]
[21,"Мне нравится наблюдать за выражением лиц и поведением незнакомых людей."]
[22,"В детстве я приводил домой бездомных собак и кошек."]
[23,"Все люди необоснованно озлоблены."]
[24,"Глядя на постороннего человека, мне хочется угадать, как сложится его жизнь."]
[25,"При виде покалеченного животного я старюсь ему помочь."]
[26,"В детстве младшие по возрасту ходили за мной по пятам."]
[27,"Человеку станет легче, если внимательно выслушать его жалобы."]
[28,"Увидев уличное происшествие, я стараюсь не попасть в число свидетелей."]
[29,"Младшим нравится, когда я предлагаю им свою идею, дело или развлечение."]
[30,"Люди преувеличивают способность животного чувствовать настроение своего хозяина."]
[31,"Из затруднительных, конфликтных ситуаций человек должен выходить самостоятельно."]
[32,"Если ребенок плачет, то на это есть свои причины."]
[33,"Молодежь должна всегда удовлетворять любые просьбы и чудачества стариков."]
[34,"Мне хотелось разобраться, почему некоторые мои коллеги иногда задумчивы."]
[35,"Беспризорных домашних животных следует уничтожать."]
[36,"Если мои друзья начинают обсуждать со мной свои личные проблемы, я перевожу разговор на другую тему."]

{"sheet":"Обработка результатов","index":1,"n_rows":43,"n_cols":12,"rows_kept":43,"cut":false,"hidden":true,"merged":[[42,1,42,2],[0,13,0,16],[7,7,7,11],[37,1,37,2],[38,1,38,2],[39,1,39,2],[40,1,40,2],[41,1,41,2],[32,1,32,2],[33,1,33,2],[34,1,34,2],[35,1,35,2],[36,1,36,2],[27,1,27,2],[28,1,28,2],[29,1,29,2],[30,1,30,2],[31,1,31,2],[22,1,22,2],[23,1,23,2],[24,1,24,2],[25,1,25,2],[26,1,26,2],[17,1,17,2],[18,1,18,2],[19,1,19,2],[20,1,20,2],[21,1,21,2],[12,1,12,2],[13,1,13,2],[14,1,14,2],[15,1,15,2],[16,1,16,2],[0,0,0,6],[1,0,1,6],[2,0,2,6],[3,0,3,6],[4,0,4,6],[5,0,5,6],[8,1,8,2],[9,1,9,2],[10,1,10,2],[11,1,11,2],[7,1,7,2]]}
["Эмпатия с родителями – 10, 13, 16 ",null,null,null,null,null,null,"I",{"$f":"D17","v":9},{"$f":"D20","v":9},{"$f":"D23","v":9},{"$f":"SUM(I1,J1,K1)","v":27}]
["Эмпатия с животными – 19, 22, 25 ",null,null,null,null,null,null,"II",{"$f":"D26","v":9},{"$f":"D29","v":9},{"$f":"D32","v":9},27]
["Эмпатия со стариками – 2, 5, 8 ",null,null,null,null,null,null,"III",{"$f":"D9","v":9},{"$f":"D12","v":9},{"$f":"D15","v":9},27]
["Эмпатия с детьми – 26, 29, 35 ",null,null,null,null,null,null,"IV",{"$f":"D33","v":9},{"$f":"D36","v":9},{"$f":"D42","v":9},27]
["Эмпатия с героями художественных произведений – 9, 12, 15 ",null,null,null,null,null,null,"V",{"$f":"D16","v":9},{"$f":"D19","v":9},{"$f":"D22","v":9},27]
["Эмпатия с незнакомыми или малознакомыми людьми (21, 24, 27)",null,null,null,null,null,null,"VI",{"$f":"D28","v":9},{"$f":"D31","v":9},{"$f":"D34","v":9},27]
[null,null,null,null,null,null,null,null,null,null,null,{"$f":"SUM(L1:L6)","v":162}]
[1,{"$f":"'Бланк Методички'!M10","v":0},null,{"$f":"IF(B8=$F$8,0,IF(B8=$F$9,1,IF(B8=$F$10,2,IF(B8=$F$11,3,IF(B8=$F$12,4,IF(B8=$F$13,5,9))))))","v":9},null,"Не знаю",null,"Определения достоверности данных"]
[2,{"$f":"'Бланк Методички'!M11","v":0},null,{"$f":"IF(B9=$F$8,0,IF(B9=$F$9,1,IF(B9=$F$10,2,IF(B9=$F$11,3,IF(B9=$F$12,4,IF(B9=$F$13,5,9))))))","v":9},null,"Нет",null,"Не знаю","Да","Да*","Нет","Да**"]
[3,{"$f":"'Бланк Методички'!M12","v":0},null,9,null,"Иногда",null,{"$f":"D9","v":9},{"$f":"D9","v":9},{"$f":"IF(D14+D24=10,1,0)","v":0},{"$f":"IF(D10+D43=10,1,0)","v":0}]
[4,{"$f":"'Бланк Методички'!M13","v":0},null,9,null,"Часто",null,{"$f":"D11","v":9},{"$f":"D14","v":9},{"$f":"IF(D17+D25=10,1,0)","v":0},{"$f":"IF(D8+D10=10,1,0)","v":0}]
[5,{"$f":"'Бланк Методички'!M14","v":0},null,9,null,"Всегда",null,{"$f":"D23","v":9},{"$f":"D18","v":9},{"$f":"IF(D24+D38=10,1,0)","v":0},{"$f":"IF(D24+D35=10,1,0)","v":0}]
[6,{"$f":"'Бланк Методички'!M15","v":0},null,9,null,"Да",null,{"$f":"D25","v":9},{"$f":"D20","v":9},{"$f":"IF(D29+D42=10,1,0)","v":0}]
[7,{"$f":"'Бланк Методички'!M16","v":0},null,9,null,null,null,{"$f":"D40","v":9},{"$f":"D23","v":9},{"$f":"IF(D41+D43=10,1,0)","v":0}]
[8,{"$f":"'Бланк Методички'!M17","v":0},null,9,null,null,null,null,{"$f":"D25","v":9}]
[9,{"$f":"'Бланк Методички'!M18","v":0},null,9,null,null,null,null,{"$f":"D30","v":9}]
[10,{"$f":"'Бланк Методички'!M19","v":0},null,9,null,null,null,{"$f":"COUNTIF(H10:H14,0)","v":0},{"$f":"COUNTIF(I10:I16,5)","v":0},{"$f":"COUNTIF(J10:J14,1)","v":0},{"$f":"COUNTIF(K10:K12,1)","v":0},{"$f":"COUNTIF(D8:D43,5)","v":0}]
[11,{"$f":"'Бланк Методички'!M20","v":0},null,9]
[12,{"$f":"'Бланк Методички'!M21","v":0},null,9]
[13,{"$f":"'Бланк Методички'!M22","v":0},null,9]
[14,{"$f":"'Бланк Методички'!M23","v":0},null,9]
[15,{"$f":"'Бланк Методички'!M24","v":0},null,9]
[16,{"$f":"'Бланк Методички'!M25","v":0},null,9]
[17,{"$f":"'Бланк Методички'!M26","v":0},null,9]
[18,{"$f":"'Бланк Методички'!M27","v":0},null,9]
[19,{"$f":"'Бланк Методички'!M28","v":0},null,9]
[20,{"$f":"'Бланк Методички'!M29","v":0},null,9]
[21,{"$f":"'Бланк Методички'!M30","v":0},null,9]
[22,{"$f":"'Бланк Методички'!M31","v":0},null,9]
[23,{"$f":"'Бланк Методички'!M32","v":0},null,9]
[24,{"$f":"'Бланк Методички'!M33","v":0},null,9]
[25,{"$f":"'Бланк Методички'!M34","v":0},null,9]
[26,{"$f":"'Бланк Методички'!M35","v":0},null,9]
[27,{"$f":"'Бланк Методички'!M36","v":0},null,9]
[28,{"$f":"'Бланк Методички'!M37","v":0},null,9]
[29,{"$f":"'Бланк Методички'!M38","v":0},null,9]
[30,{"$f":"'Бланк Методички'!M39","v":0},null,9]
[31,{"$f":"'Бланк Методички'!M40","v":0},null,9]
[32,{"$f":"'Бланк Методички'!M41","v":0},null,9]
[33,{"$f":"'Бланк Методички'!M42","v":0},null,9]
[34,{"$f":"'Бланк Методички'!M43","v":0},null,9]
[35,{"$f":"'Бланк Методички'!M44","v":0},null,9]
[36,{"$f":"'Бланк Методички'!M45","v":0},null,9]

{"sheet":"Печать","index":2,"n_rows":41,"n_cols":8,"rows_kept":41,"cut":false,"hidden":false,"merged":[[5,0,5,8],[6,0,6,1],[40,5,40,8],[11,7,11,8],[14,7,14,8],[15,7,15,8],[11,0,11,4],[12,0,12,4],[13,0,13,4],[14,0,14,4],[15,0,15,4],[16,0,16,4],[7,0,7,1],[8,0,8,1],[6,2,6,8],[7,2,7,8],[8,2,8,8],[9,2,9,8],[18,0,18,3],[18,4,18,8],[0,0,0,8],[2,7,2,8],[3,7,3,8],[2,1,2,5],[3,1,3,5],[16,7,16,8],[12,7,12,8],[13,7,13,8],[9,0,9,1],[10,0,10,1]]}
["Экспресс-диагностика эмпатии"]
[]
["ФИО",{"$f":"PROPER('Бланк Методички'!D2)","v":""},null,null,null,null,"Класс",{"$f":"'Бланк Методички'!M2","v":0}]
["Возраст",{"$f":"CONCATENATE('Бланк Методички'!D3, \" лет\")","v":" лет"},null,null,null,null,"Дата",{"$f":"TODAY()","v":"2018-03-12"}]
[]
["Шкала лжи"]
["Не знаю",null,{"$f":"IF('Обработка результатов'!H17>=5,\"Недостоверные исследования\",IF('Обработка результатов'!H17=4,\"Результат сомнителен\",\"Достоверные исследования\"))","v":"Достоверные исследования"}]
["Да",null,{"$f":"IF('Обработка результатов'!I17>=5,\"Недостоверные исследования\",IF('Обработка результатов'!I17=4,\"Результат сомнителен\",\"Достоверные исследования\"))","v":"Достоверные исследования"}]
["Да в парах",null,{"$f":"IF('Обработка результатов'!J17>=5,\"Недостоверные исследования\",IF('Обработка результатов'!J17=4,\"Результат сомнителен\",\"Достоверные исследования\"))","v":"Достоверные исследования"}]
["Да и нет в парах",null,{"$f":"IF('Обработка результатов'!K17>=5,\"Недостоверные исследования\",IF('Обработка результатов'!K17=4,\"Результат сомнителен\",\"Достоверные исследования\"))","v":"Достоверные исследования"}]
[]
["Эмпатия с родителями",null,null,null,null,"I",{"$f":"CONCATENATE('Обработка результатов'!L1,\" / 15\")","v":"27 / 15"},{"$f":"IF('Обработка результатов'!L1>=15,\"Очень высокий\",IF(AND('Обработка результатов'!L1>=13,'Обработка результатов'!L1<=14),\"Высокий\",IF(AND('Обработка результатов'!L1>=5,'Обработка результатов'!L1<=12),\"Средний\",IF(AND('Обработка результатов'!L1>=2,'Обработка результатов'!L1<=4),\"Низкий\",IF(AND('Обработка результатов'!L1>=0,'Обработка результатов'!L1<=1),\"Очень низкий\",)))))","v":"Очень высокий"}]
["Эмпатия с животными",null,null,null,null,"II",{"$f":"CONCATENATE('Обработка результатов'!L2,\" / 15\")","v":"27 / 15"},{"$f":"IF('Обработка результатов'!L2>=15,\"Очень высокий\",IF(AND('Обработка результатов'!L2>=13,'Обработка результатов'!L2<=14),\"Высокий\",IF(AND('Обработка результатов'!L2>=5,'Обработка результатов'!L2<=12),\"Средний\",IF(AND('Обработка результатов'!L2>=2,'Обработка результатов'!L2<=4),\"Низкий\",IF(AND('Обработка результатов'!L2>=0,'Обработка результатов'!L2<=1),\"Очень низкий\",)))))","v":"Очень высокий"}]
["Эмпатия со стариками",null,null,null,null,"III",{"$f":"CONCATENATE('Обработка результатов'!L3,\" / 15\")","v":"27 / 15"},{"$f":"IF('Обработка результатов'!L3>=15,\"Очень высокий\",IF(AND('Обработка результатов'!L3>=13,'Обработка результатов'!L3<=14),\"Высокий\",IF(AND('Обработка результатов'!L3>=5,'Обработка результатов'!L3<=12),\"Средний\",IF(AND('Обработка результатов'!L3>=2,'Обработка результатов'!L3<=4),\"Низкий\",IF(AND('Обработка результатов'!L3>=0,'Обработка результатов'!L3<=1),\"Очень низкий\",)))))","v":"Очень высокий"}]
["Эмпатия с детьми",null,null,null,null,"IV",{"$f":"CONCATENATE('Обработка результатов'!L4,\" / 15\")","v":"27 / 15"},{"$f":"IF('Обработка результатов'!L4>=15,\"Очень высокий\",IF(AND('Обработка результатов'!L4>=13,'Обработка результатов'!L4<=14),\"Высокий\",IF(AND('Обработка результатов'!L4>=5,'Обработка результатов'!L4<=12),\"Средний\",IF(AND('Обработка результатов'!L4>=2,'Обработка результатов'!L4<=4),\"Низкий\",IF(AND('Обработка результатов'!L4>=0,'Обработка результатов'!L4<=1),\"Очень низкий\",)))))","v":"Очень высокий"}]
["Эмпатия с героями художественных произведений",null,null,null,null,"V",{"$f":"CONCATENATE('Обработка результатов'!L5,\" / 15\")","v":"27 / 15"},{"$f":"IF('Обработка результатов'!L5>=15,\"Очень высокий\",IF(AND('Обработка результатов'!L5>=13,'Обработка результатов'!L5<=14),\"Высокий\",IF(AND('Обработка результатов'!L5>=5,'Обработка результатов'!L5<=12),\"Средний\",IF(AND('Обработка результатов'!L5>=2,'Обработка результатов'!L5<=4),\"Низкий\",IF(AND('Обработка результатов'!L5>=0,'Обработка результатов'!L5<=1),\"Очень низкий\",)))))","v":"Очень высокий"}]
["Эмпатия с незнакомыми или малознакомыми людьми",null,null,null,null,"VI",{"$f":"CONCATENATE('Обработка результатов'!L6,\" / 15\")","v":"27 / 15"},{"$f":"IF('Обработка результатов'!L6>=15,\"Очень высокий\",IF(AND('Обработка результатов'!L6>=13,'Обработка результатов'!L6<=14),\"Высокий\",IF(AND('Обработка результатов'!L6>=5,'Обработка результатов'!L6<=12),\"Средний\",IF(AND('Обработка результатов'!L6>=2,'Обработка результатов'!L6<=4),\"Низкий\",IF(AND('Обработка результатов'!L6>=0,'Обработка результатов'!L6<=1),\"Очень низкий\",)))))","v":"Очень высокий"}]
[]
["Уровень эмпатийности:",null,null,null,{"$f":"IF(AND('Обработка результатов'!L7>=82,'Обработка результатов'!L7<=90),\"Очень высокий\",IF(AND('Обработка результатов'!L7>=63,'Обработка результатов'!L7<=81),\"Высокий\",IF(AND('Обработка результатов'!L7>=37,'Обработка результатов'!L7<=62),\"Средний\",IF(AND('Обработка результатов'!L7>=12,'Обработка результатов'!L7<=36),\"Низкий\",IF('Обработка результатов'!L7<=11,\"Очень низкий\",)))))","v":0}]
[]
[]
[]
[]
[]
[]
[]
[]
[]
[]
[]
[]
[]
[]
[]
[]
[]
[]
[]
[]
[]
[null,null,null,null,null,"http://eschool.by/courses/psy/"]